fUSD/lending_fUSD_20240319
["ID","MTS","AMOUNT","RATE_DAILY","PERIOD"]
[319513396,1710815470069,-500.0,0.00055068,120]
[319513397,1710815470080,-509.82,0.00055068,120]
[319513398,1710815470089,-500.0,0.00055068,120]
[319513399,1710815470099,-500.0,0.00055068,120]
[319513400,1710815470109,-831.89,0.00055068,120]
[319513401,1710815470119,-500.0,0.00055068,120]
[319513402,1710815470129,-500.0,0.00055068,120]
[319513403,1710815470138,-5220.64,0.00055068,120]
[319513404,1710815470148,-500.0,0.00055068,120]
[319513405,1710815470158,-500.0,0.00055068,120]
[319513406,1710815470167,-500.0,0.00055068,120]
[319513407,1710815470182,-500.0,0.00055068,120]
[319513408,1710815470193,-500.0,0.00055068,120]
[319513409,1710815470203,-1115.2,0.00055068,120]
[319513410,1710815470216,-500.0,0.00055068,120]
[319513411,1710815470225,-500.0,0.00055068,120]
[319513412,1710815470235,-3400.1,0.00055068,120]
[319513413,1710815470244,-500.0,0.00055068,120]
[319513414,1710815470254,-520.93,0.00055068,120]
[319513415,1710815470264,-500.0,0.00055068,120]
[319513416,1710815470273,-500.0,0.00055068,120]
[319513417,1710815470282,-500.0,0.00055068,120]
[319513418,1710815470292,-500.0,0.00055068,120]
[319513419,1710815470302,-500.0,0.00055068,120]
[319513420,1710815470311,-500.0,0.00055068,120]
[319513421,1710815470321,-1814.97,0.00055068,120]
[319513422,1710815470330,-13598.94,0.00055068,120]
[319513423,1710815470339,-1617.46,0.00055068,120]
[319513424,1710815470348,-507.52452885,0.00055068,120]
[319513425,1710815470358,-500.0,0.00055068,120]
[319513426,1710815470367,-500.0,0.00055068,120]
[319513427,1710815470376,-500.0,0.00055068,120]
[319513428,1710815470386,-500.0,0.00055068,120]
[319513429,1710815470395,-980.92,0.00055068,120]
[319513430,1710815470405,-500.0,0.00055068,120]
[319513431,1710815470415,-500.0,0.00055068,120]
[319513432,1710815470427,-500.0,0.00055068,7]
[319513433,1710815470437,-500.0,0.00055068,120]
[319513434,1710815470448,-500.0,0.00055068,120]
[319513435,1710815470458,-500.0,0.00055068,120]
[319513436,1710815470468,-500.0,0.00055068,120]
[319513437,1710815470477,-500.0,0.00055068,120]
[319513438,1710815470486,-500.0,0.00055068,120]
[319513439,1710815470495,-500.0,0.00055068,120]
[319513440,1710815470505,-2445.6,0.00055068,120]
[319513441,1710815470514,-1714.56,0.00055068,120]
[319513442,1710815470523,-500.0,0.00055068,120]
[319513443,1710815470532,-500.0,0.00055068,120]
[319513444,1710815470541,-549.98,0.00055068,120]
[319513445,1710815470550,-993.9,0.00055068,120]
[319513446,1710815470560,-500.0,0.00055068,120]
[319513447,1710815470570,-500.0,0.00055068,120]
[319513448,1710815470579,-500.0,0.00055068,120]
[319513449,1710815470588,-658.87,0.00055068,120]
[319513450,1710815470598,-500.0,0.00055068,120]
[319513451,1710815470607,-637.11,0.00055068,120]
[319513452,1710815470616,-500.0,0.00055068,120]
[319513453,1710815470625,-500.0,0.00055068,120]
[319513454,1710815470634,-500.0,0.00055068,120]
[319513455,1710815470643,-500.0,0.00055068,120]
[319513456,1710815470652,-1643.61,0.00055068,120]
[319513457,1710815470661,-257.01025242,0.00055068,120]
[319513458,1710815470671,-500.0,0.00055068,120]
[319513459,1710815470683,-500.0,0.00055068,120]
[319513460,1710815470692,-500.0,0.00055068,120]
[319513461,1710815470701,-1809.66,0.00055068,120]
[319513462,1710815470710,-500.0,0.00055068,120]
[319513463,1710815470720,-500.0,0.00055068,120]
[319513464,1710815470729,-500.0,0.00055068,120]
[319513465,1710815470738,-500.0,0.00055068,120]
[319513466,1710815470747,-571.91,0.00055068,120]
[319513467,1710815470757,-751.86,0.00055068,120]
[319513468,1710815470766,-541.8,0.00055068,120]
[319513469,1710815470775,-500.0,0.00055068,120]
[319513470,1710815470784,-1299.29,0.00055068,120]
[319513471,1710815470793,-500.0,0.00055068,120]
[319513472,1710815470802,-16186.27,0.00055068,120]
[319513473,1710815470811,-924.93,0.00055068,120]
[319513474,1710815470820,-500.0,0.00055068,120]
[319513475,1710815470830,-500.0,0.00055068,120]
[319513476,1710815470839,-1654.05,0.00055068,120]
[319513477,1710815470848,-500.49762799,0.00055068,120]
[319513478,1710815470858,-500.0,0.00055068,120]
[319513479,1710815470867,-500.0,0.00055068,120]
[319513480,1710815470877,-500.0,0.00055068,120]
[319513481,1710815470886,-804.39,0.00055068,120]
[319513482,1710815470896,-500.0,0.00055068,120]
[319513483,1710815470905,-500.0,0.00055068,120]
[319513484,1710815470915,-782.74,0.00055068,120]
[319513485,1710815470925,-2232.31,0.00055068,120]
[319513486,1710815470935,-500.0,0.00055068,120]
[319513487,1710815470944,-604.38,0.00055068,120]
[319513488,1710815470953,-500.0,0.00055068,120]
[319513489,1710815470962,-500.0,0.00055068,120]
[319513490,1710815470972,-2164.67,0.00055068,120]
[319513491,1710815470981,-1663.42,0.00055068,120]
[319513492,1710815471142,-500.0,0.00055068,120]
[319513493,1710815471152,-293.76914169,0.00055068,120]
[319513494,1710815471161,-500.0,0.00055068,120]
[319513495,1710815471171,-500.42308207,0.00055068,120]
[319513496,1710815471183,-1083.83,0.00055068,120]
[319513497,1710815471196,-500.0,0.00055068,120]
[319513498,1710815471205,-500.0,0.00055068,120]
[319513499,1710815471215,-500.0,0.00055068,120]
[319513500,1710815471225,-500.0,0.00055068,120]
[319513501,1710815471237,-1157.87,0.00055068,120]
[319513502,1710815471247,-500.0,0.00055068,120]
[319513503,1710815471257,-981.98,0.00055068,120]
[319513504,1710815471267,-2476.44,0.00055068,120]
[319513505,1710815471276,-500.0,0.00055068,120]
[319513506,1710815471286,-500.0,0.00055068,120]
[319513507,1710815471296,-500.0,0.00055068,120]
[319513508,1710815471306,-500.0,0.00055068,120]
[319513509,1710815471315,-500.0,0.00055068,120]
[319513510,1710815471325,-500.0,0.00055068,120]
[319513511,1710815471335,-500.0,0.00055068,120]
[319513512,1710815471345,-1219.47,0.00055068,120]
[319513513,1710815471354,-500.44930187,0.00055068,120]
[319513514,1710815471364,-500.0,0.00055068,120]
[319513515,1710815471373,-500.0,0.00055068,120]
[319513516,1710815471382,-500.0,0.00055068,120]
[319513517,1710815471392,-642.22,0.00055068,120]
[319513518,1710815471401,-599.14,0.00055068,120]
[319513519,1710815471410,-569.86223485,0.00055068,120]
[319513520,1710815471420,-1485.41,0.00055068,120]
[319513521,1710815471432,-500.0,0.00055068,120]
[319513522,1710815471441,-500.0,0.00055068,120]
[319513523,1710815471450,-501.7897931,0.00055068,120]
[319513524,1710815471459,-1972.44,0.00055068,120]
[319513525,1710815471468,-500.0,0.00055068,120]
[319513526,1710815471478,-500.0,0.00055068,120]
[319513527,1710815471487,-500.0,0.00055068,120]
[319513528,1710815471497,-612.66,0.00055068,120]
[319513529,1710815471506,-500.0,0.00055068,120]
[319513530,1710815471515,-500.0,0.00055068,120]
[319513531,1710815471526,-500.0,0.00055068,120]
[319513532,1710815471535,-500.0,0.00055068,120]
[319513533,1710815471545,-500.0,0.00055068,120]
[319513534,1710815471554,-838.69,0.00055068,120]
[319513535,1710815471564,-32857.21,0.00055068,120]
[319513536,1710815471573,-500.0,0.00055068,120]
[319513537,1710815471583,-1020.12,0.00055068,120]
[319513538,1710815471592,-500.0,0.00055068,120]
[319513539,1710815471602,-500.0,0.00055068,120]
[319513540,1710815471611,-500.0,0.00055068,120]
[319513541,1710815471621,-500.0,0.00055068,120]
[319513542,1710815471630,-1152.99,0.00055068,120]
[319513543,1710815471640,-500.0,0.00055068,120]
[319513544,1710815471649,-500.0,0.00055068,120]
[319513545,1710815471659,-500.0,0.00055068,120]
[319513546,1710815471669,-501.92811914,0.00055068,120]
[319513547,1710815471680,-664.68,0.00055068,120]
[319513548,1710815471689,-1322.53,0.00055068,120]
[319513549,1710815471698,-500.0,0.00055068,120]
[319513550,1710815471707,-500.0,0.00055068,120]
[319513551,1710815471716,-739.93,0.00055068,120]
[319513552,1710815471725,-620.82,0.00055068,120]
[319513553,1710815471733,-512.66,0.00055068,120]
[319513554,1710815471742,-1391.81,0.00055068,120]
[319513555,1710815471751,-2417.04,0.00055068,120]
[319513556,1710815471760,-591.3,0.00055068,120]
[319513557,1710815471769,-500.0,0.00055068,120]
[319513558,1710815471777,-1859.74,0.00055068,120]
[319513559,1710815471786,-500.0,0.00055068,120]
[319513560,1710815471795,-500.0,0.00055068,120]
[319513561,1710815471804,-502.34,0.00055068,120]
[319513562,1710815471813,-500.0,0.00055068,120]
[319513563,1710815471822,-500.0,0.00055068,120]
[319513564,1710815471831,-1209.59,0.00055068,120]
[319513565,1710815471839,-1336.54,0.00055068,120]
[319513566,1710815471848,-1868.97,0.00055068,120]
[319513567,1710815471857,-500.0,0.00055068,120]
[319513568,1710815471865,-234.54188902,0.00055068,120]
[319513569,1710815471874,-857.41,0.00055068,120]
[319513570,1710815471883,-500.0,0.00055068,120]
[319513571,1710815471892,-500.0,0.00055068,120]
[319513572,1710815471901,-1577.63,0.00055068,120]
[319513573,1710815471910,-1079.47,0.00055068,120]
[319513574,1710815471919,-500.0,0.00055068,120]
[319513575,1710815471930,-500.0,0.00055068,120]
[319513576,1710815471939,-3157.89,0.00055068,120]
[319513577,1710815471948,-604.22533619,0.00055068,120]
[319513578,1710815471957,-1904.43,0.00055068,120]
[319513579,1710815471966,-500.0,0.00055068,120]
[319513580,1710815471975,-500.0,0.00055068,120]
[319513581,1710815471984,-500.0,0.00055068,120]
[319513582,1710815471993,-704.11,0.00055068,120]
[319513583,1710815472003,-500.0,0.00055068,120]
[319513584,1710815472012,-500.0,0.00055068,120]
[319513585,1710815472021,-500.0,0.00055068,120]
[319513586,1710815472030,-1719.61,0.00055068,120]
[319513587,1710815472039,-500.0,0.00055068,120]
[319513588,1710815472049,-500.0,0.00055068,120]
[319513589,1710815472058,-500.0,0.00055068,120]
[319513590,1710815472067,-500.0,0.00055068,120]
[319513591,1710815472077,-500.0,0.00055068,120]
[319513592,1710815472086,-500.0,0.00055068,120]
[319513593,1710815472095,-568.52,0.00055068,120]
[319513594,1710815472104,-659.47,0.00055068,120]
[319513595,1710815472114,-500.0,0.00055068,120]
[319513596,1710815472123,-500.0,0.00055068,120]
[319513597,1710815472133,-500.0,0.00055068,120]
[319513598,1710815472142,-1193.75,0.00055068,120]
[319513599,1710815472151,-500.0,0.00055068,120]
[319513600,1710815472161,-500.0,0.00055068,120]
[319513601,1710815472170,-500.0,0.00055068,120]
[319513602,1710815472181,-515.18,0.00055068,120]
[319513603,1710815472191,-1053.46,0.00055068,120]
[319513604,1710815472200,-500.0,0.00055068,120]
[319513605,1710815472211,-500.0,0.00055068,120]
[319513606,1710815472221,-1220.11,0.00055068,120]
[319513607,1710815472230,-986.04,0.00055068,120]
[319513608,1710815472239,-500.71796576,0.00055068,120]
[319513609,1710815472248,-500.0,0.00055068,120]
[319513610,1710815472258,-500.0,0.00055068,120]
[319513611,1710815472267,-500.0,0.00055068,2]
[319513612,1710815472277,-2226.45,0.00055068,120]
[319513613,1710815472287,-416.98780582,0.00055068,120]
[319513614,1710815472297,-500.0,0.00055068,120]
[319513615,1710815472306,-500.0,0.00055068,120]
[319513616,1710815472315,-500.0,0.00055068,120]
[319513617,1710815472324,-2834.4,0.00055068,120]
[319513618,1710815472334,-500.0,0.00055068,120]
[319513619,1710815472343,-500.0,0.00055068,120]
[319513620,1710815472353,-500.0,0.00055068,120]
[319513621,1710815472362,-223.62459412,0.00055068,120]
[319513622,1710815472371,-500.0,0.00055068,120]
[319513623,1710815472380,-500.0,0.00055068,120]
[319513624,1710815472389,-500.0,0.00055068,120]
[319513625,1710815472398,-500.0,0.00055068,120]
[319513626,1710815472408,-500.0,0.00055068,120]
[319513627,1710815472417,-500.0,0.00055068,120]
[319513628,1710815472428,-1857.95,0.00055068,120]
[319513629,1710815472438,-500.0,0.00055068,120]
[319513630,1710815472447,-708.11,0.00055068,120]
[319513631,1710815472457,-565.95120236,0.00055068,120]
[319513632,1710815472466,-500.0,0.00055068,120]
[319513633,1710815472475,-500.0,0.00055068,120]
[319513634,1710815472485,-1836.13,0.00055068,120]
[319513635,1710815472494,-500.0,0.00055068,120]
[319513636,1710815472503,-542.35,0.00055068,120]
[319513637,1710815472513,-500.0,0.00055068,120]
[319513638,1710815472522,-500.0,0.00055068,120]
[319513639,1710815472531,-4718.43,0.00055068,120]
[319513640,1710815472541,-1843.04,0.00055068,21]
[319513641,1710815472550,-500.0,0.00055068,120]
[319513642,1710815472559,-500.0,0.00055068,120]
[319513643,1710815472569,-2910.34,0.00055068,120]
[319513644,1710815472578,-1062.84,0.00055068,120]
[319513645,1710815472588,-500.0,0.00055068,120]
[319513646,1710815472598,-1125.52,0.00055068,120]
[319513647,1710815472608,-500.0,0.00055068,120]
[319513648,1710815472617,-961.78,0.00055068,120]
[319513649,1710815472627,-500.0,0.00055068,120]
[319513650,1710815472636,-500.0,0.00055068,120]
[319513651,1710815472646,-500.0,0.00055068,120]
[319513652,1710815472655,-2959.23,0.00055068,120]
[319513653,1710815472665,-500.0,0.00055068,120]
[319513654,1710815472677,-500.0,0.00055068,120]
[319513655,1710815472687,-552.3,0.00055068,120]
[319513656,1710815472696,-500.0,0.00055068,120]
[319513657,1710815472705,-500.0,0.00055068,120]
[319513658,1710815472715,-1955.63,0.00055068,120]
[319513659,1710815472725,-500.0,0.00055068,120]
[319513660,1710815472735,-500.0,0.00055068,120]
[319513661,1710815472744,-500.0,0.00055068,120]
[319513662,1710815472753,-500.0,0.00055068,120]
[319513663,1710815472762,-1219.87,0.00055068,120]
[319513664,1710815472772,-500.0,0.00055068,120]
[319513665,1710815472781,-957.07,0.00055068,120]
[319513666,1710815472790,-500.62495995,0.00055068,120]
[319513667,1710815472799,-1129.87,0.00055068,120]
[319513668,1710815472809,-500.0,0.00055068,120]
[319513669,1710815472818,-560.08694891,0.00055068,120]
[319513670,1710815472827,-500.0,0.00055068,120]
[319513671,1710815472837,-822.28,0.00055068,120]
[319513672,1710815472846,-3467.49,0.00055068,120]
[319513673,1710815472855,-501.37785431,0.00055068,120]
[319513674,1710815472864,-1614.59,0.00055068,120]
[319513675,1710815472874,-500.0,0.00055068,120]
[319513676,1710815472883,-3731.32,0.00055068,120]
[319513677,1710815472893,-500.0,0.00055068,120]
[319513678,1710815472902,-500.0,0.00055068,120]
[319513679,1710815472912,-500.0,0.00055068,120]
[319513680,1710815472921,-510.51336743,0.00055068,120]
[319513681,1710815472934,-500.0,0.00055068,120]
[319513682,1710815472943,-500.0,0.00055068,120]
[319513683,1710815472952,-961.27,0.00055068,120]
[319513684,1710815472961,-500.75262816,0.00055068,120]
[319513685,1710815472971,-500.0,0.00055068,120]
[319513686,1710815472980,-500.0,0.00055068,120]
[319513687,1710815472990,-500.0,0.00055068,120]
[319513688,1710815472999,-1724.04,0.00055068,120]
[319513689,1710815473009,-1244.55,0.00055068,120]
[319513690,1710815473018,-500.0,0.00055068,120]
[319513691,1710815473028,-1361.94,0.00055068,120]
[319513692,1710815473038,-1493.98,0.00055068,120]
[319513693,1710815473047,-500.0,0.00055068,120]
[319513694,1710815473056,-500.0,0.00055068,120]
[319513695,1710815473066,-557.1,0.00055068,120]
[319513696,1710815473076,-500.0,0.00055068,120]
[319513697,1710815473085,-500.0,0.00055068,120]
[319513698,1710815473094,-500.0,0.00055068,120]
[319513699,1710815473104,-1193.96,0.00055068,120]
[319513700,1710815473114,-500.0,0.00055068,120]
[319513701,1710815473124,-500.31495228,0.00055068,120]
[319513702,1710815473133,-500.0,0.00055068,120]
[319513703,1710815473142,-500.0,0.00055068,120]
[319513704,1710815473152,-1296.76,0.00055068,120]
[319513705,1710815473161,-500.0,0.00055068,120]
[319513706,1710815473171,-1401.66,0.00055068,120]
[319513707,1710815473185,-500.0,0.00055068,120]
[319513708,1710815473199,-1463.59,0.00055068,120]
[319513709,1710815473209,-500.0,0.00055068,120]
[319513710,1710815473360,-500.0,0.00055068,120]
[319513711,1710815473369,-500.0,0.00055068,120]
[319513712,1710815473379,-2724.62,0.00055068,120]
[319513713,1710815473388,-500.0,0.00055068,120]
[319513714,1710815473397,-500.0,0.00055068,120]
[319513715,1710815473406,-500.0,0.00055068,120]
[319513716,1710815473415,-500.0,0.00055068,120]
[319513717,1710815473428,-500.0,0.00055068,120]
[319513718,1710815473438,-1295.46,0.00055068,120]
[319513719,1710815473447,-2130.32,0.00055068,120]
[319513720,1710815473456,-1974.77,0.00055068,120]
[319513721,1710815473466,-500.0,0.00055068,120]
[319513722,1710815473475,-657.52,0.00055068,120]
[319513723,1710815473485,-500.0,0.00055068,120]
[319513724,1710815473495,-500.0,0.00055068,120]
[319513725,1710815473504,-500.0,0.00055068,120]
[319513726,1710815473514,-500.0,0.00055068,120]
[319513727,1710815473523,-1422.76,0.00055068,120]
[319513728,1710815473533,-500.0,0.00055068,120]
[319513729,1710815473542,-500.0,0.00055068,120]
[319513730,1710815473552,-1557.62,0.00055068,120]
[319513731,1710815473561,-500.0,0.00055068,120]
[319513732,1710815473570,-500.0,0.00055068,120]
[319513733,1710815473579,-1606.02,0.00055068,120]
[319513734,1710815473588,-500.0,0.00055068,120]
[319513735,1710815473597,-1089.25,0.00055068,120]
[319513736,1710815473607,-1777.9,0.00055068,120]
[319513737,1710815473616,-500.0,0.00055068,120]
[319513738,1710815473626,-500.0,0.00055068,120]
[319513739,1710815473635,-1205.53,0.00055068,120]
[319513740,1710815473644,-2696.99,0.00055068,120]
[319513741,1710815473654,-1152.46,0.00055068,120]
[319513742,1710815473663,-500.0,0.00055068,120]
[319513743,1710815473672,-846.6,0.00055068,120]
[319513744,1710815473684,-810.32,0.00055068,120]
[319513745,1710815473693,-500.0,0.00055068,120]
[319513746,1710815473702,-500.0,0.00055068,120]
[319513747,1710815473711,-500.0,0.00055068,120]
[319513748,1710815473721,-2202.94,0.00055068,120]
[319513749,1710815473730,-500.0,0.00055068,120]
[319513750,1710815473740,-2109.59,0.00055068,120]
[319513751,1710815473749,-500.0,0.00055068,120]
[319513752,1710815473759,-1027.56,0.00055068,120]
[319513753,1710815473768,-500.0,0.00055068,120]
[319513754,1710815473778,-500.0,0.00055068,120]
[319513755,1710815473787,-500.0,0.00055068,120]
[319513756,1710815473796,-500.0,0.00055068,120]
[319513757,1710815473806,-499.58046193,0.00055068,120]
[319513758,1710815473815,-500.0,0.00055068,120]
[319513759,1710815473824,-500.0,0.00055068,120]
[319513760,1710815473833,-1860.38,0.00055068,120]
[319513761,1710815473842,-505.3837916,0.00055068,120]
[319513762,1710815473852,-500.0,0.00055068,120]
[319513763,1710815473861,-500.0,0.00055068,120]
[319513764,1710815473870,-9731.84,0.00055068,120]
[319513765,1710815473879,-500.0,0.00055068,120]
[319513766,1710815473889,-936.53,0.00055068,120]
[319513767,1710815473898,-1155.32,0.00055068,120]
[319513768,1710815473908,-7852.89,0.00055068,120]
[319513769,1710815473917,-1551.69,0.00055068,120]
[319513770,1710815473927,-500.0,0.00055068,120]
[319513771,1710815473936,-500.0,0.00055068,120]
[319513772,1710815473946,-1571.95,0.00055068,7]
[319513773,1710815473955,-500.0,0.00055068,120]
[319513774,1710815473964,-989.05,0.00055068,120]
[319513775,1710815473974,-500.0,0.00055068,120]
[319513776,1710815473983,-500.0,0.00055068,120]
[319513777,1710815473992,-3467.47,0.00055068,120]
[319513778,1710815474002,-628.0,0.00055068,120]
[319513779,1710815474011,-2761.03,0.00055068,120]
[319513780,1710815474021,-500.0,0.00055068,120]
[319513781,1710815474030,-500.0,0.00055068,120]
[319513782,1710815474039,-500.0,0.00055068,120]
[319513783,1710815474048,-500.0,0.00055068,120]
[319513784,1710815474057,-500.0,0.00055068,120]
[319513785,1710815474066,-500.0,0.00055068,120]
[319513786,1710815474075,-500.0,0.00055068,120]
[319513787,1710815474085,-2488.6,0.00055068,120]
[319513788,1710815474094,-500.0,0.00055068,120]
[319513789,1710815474103,-2441.22,0.00055068,120]
[319513790,1710815474112,-500.0,0.00055068,120]
[319513791,1710815474121,-500.0,0.00055068,120]
[319513792,1710815474130,-500.0,0.00055068,120]
[319513793,1710815474140,-4712.42,0.00055068,120]
[319513794,1710815474149,-500.0,0.00055068,120]
[319513795,1710815474158,-2924.24,0.00055068,120]
[319513796,1710815474169,-1341.63,0.00055068,120]
[319513797,1710815474180,-1196.76,0.00055068,120]
[319513798,1710815474190,-500.0,0.00055068,120]
[319513799,1710815474202,-500.0,0.00055068,120]
[319513800,1710815474211,-3847.33,0.00055068,120]
[319513801,1710815474220,-500.0,0.00055068,120]
[319513802,1710815474230,-500.0,0.00055068,120]
[319513803,1710815474241,-500.0,0.00055068,120]
[319513804,1710815474251,-500.0,0.00055068,120]
[319513805,1710815474261,-707.9,0.00055068,120]
[319513806,1710815474270,-992.27,0.00055068,120]
[319513807,1710815474279,-1637.59,0.00055068,120]
[319513808,1710815474290,-1862.01,0.00055068,120]
[319513809,1710815474300,-2398.68,0.00055068,120]
[319513810,1710815474309,-500.0,0.00055068,120]
[319513811,1710815474318,-500.0,0.00055068,120]
[319513812,1710815474328,-500.0,0.00055068,120]
[319513813,1710815474337,-1286.61,0.00055068,120]
[319513814,1710815474346,-500.0,0.00055068,120]
[319513815,1710815474356,-500.0,0.00055068,120]
[319513816,1710815474365,-4496.61,0.00055068,120]
[319513817,1710815474374,-1504.11,0.00055068,120]
[319513818,1710815474384,-500.0,0.00055068,120]
[319513819,1710815474394,-1636.39,0.00055068,120]
[319513820,1710815474403,-500.0,0.00055068,120]
[319513821,1710815474413,-1989.3,0.00055068,120]
[319513822,1710815474422,-517.02,0.00055068,120]
[319513823,1710815474434,-7477.17,0.00055068,120]
[319513824,1710815474444,-500.0,0.00055068,120]
[319513825,1710815474453,-766.61,0.00055068,120]
[319513826,1710815474462,-500.0,0.00055068,120]
[319513827,1710815474471,-500.0,0.00055068,120]
[319513828,1710815474480,-500.0,0.00055068,120]
[319513829,1710815474490,-500.0,0.00055068,120]
[319513830,1710815474499,-500.0,0.00055068,120]
[319513831,1710815474508,-4908.68,0.00055068,120]
[319513832,1710815474518,-512.43,0.00055068,120]
[319513833,1710815474527,-500.0,0.00055068,120]
[319513834,1710815474536,-500.0,0.00055068,120]
[319513835,1710815474545,-3697.55,0.00055068,120]
[319513836,1710815474554,-1124.0,0.00055068,120]
[319513837,1710815474563,-620.61,0.00055068,120]
[319513838,1710815474573,-887.73,0.00055068,120]
[319513839,1710815474582,-500.0,0.00055068,120]
[319513840,1710815474591,-1777.24,0.00055068,120]
[319513841,1710815474600,-500.0,0.00055068,120]
[319513842,1710815474609,-817.79,0.00055068,120]
[319513843,1710815474618,-500.0,0.00055068,120]
[319513844,1710815474627,-2895.4,0.00055068,120]
[319513845,1710815474636,-2137.7,0.00055068,120]
[319513846,1710815474645,-500.0,0.00055068,120]
[319513847,1710815474654,-500.0,0.00055068,120]
[319513848,1710815474664,-500.0,0.00055068,120]
[319513849,1710815474673,-776.43,0.00055068,120]
[319513850,1710815474684,-500.0,0.00055068,120]
[319513851,1710815474693,-500.0,0.00055068,120]
[319513852,1710815474702,-14779.54,0.00055068,120]
[319513853,1710815474711,-766.17,0.00055068,120]
[319513854,1710815474720,-500.0,0.00055068,120]
[319513855,1710815474730,-1375.07,0.00055068,120]
[319513856,1710815474739,-500.0,0.00055068,120]
[319513857,1710815474749,-200.0,0.00055068,120]
[319513858,1710815474757,-500.0,0.00055068,120]
[319513859,1710815474766,-1521.12,0.00055068,120]
[319513860,1710815474775,-1283.0,0.00055068,120]
[319513861,1710815474784,-500.0,0.00055068,120]
[319513862,1710815474793,-679.89,0.00055068,120]
[319513863,1710815474802,-598.46,0.00055068,2]
[319513864,1710815474811,-500.0,0.00055068,120]
[319513865,1710815474820,-500.0,0.00055068,120]
[319513866,1710815474829,-500.0,0.00055068,120]
[319513867,1710815474838,-1257.67,0.00055068,120]
[319513868,1710815474846,-500.0,0.00055068,120]
[319513869,1710815474856,-758.2,0.00055068,120]
[319513870,1710815474865,-500.0,0.00055068,120]
[319513871,1710815474873,-1151.3,0.00055068,120]
[319513872,1710815474882,-500.0,0.00055068,2]
[319513873,1710815474891,-1196.93,0.00055068,120]
[319513874,1710815474900,-500.0,0.00055068,120]
[319513875,1710815474909,-500.0,0.00055068,120]
[319513876,1710815474918,-504.05510985,0.00055068,120]
[319513877,1710815474929,-500.0,0.00055068,120]
[319513878,1710815474938,-2331.78,0.00055068,120]
[319513879,1710815474947,-500.0,0.00055068,120]
[319513880,1710815474956,-500.0,0.00055068,120]
[319513881,1710815474965,-2838.88,0.00055068,120]
[319513882,1710815474974,-534.01,0.00055068,120]
[319513883,1710815474983,-500.0,0.00055068,120]
[319513884,1710815474991,-500.0,0.00055068,120]
[319513885,1710815475001,-500.0,0.00055068,120]
[319513886,1710815475010,-6940.79,0.00055068,120]
[319513887,1710815475020,-1785.73,0.00055068,120]
[319513888,1710815475029,-500.0,0.00055068,120]
[319513889,1710815475039,-669.38,0.00055068,120]
[319513890,1710815475049,-500.0,0.00055068,120]
[319513891,1710815475058,-500.0,0.00055068,120]
[319513892,1710815475068,-869.32,0.00055068,120]
[319513893,1710815475078,-1847.59,0.00055068,120]
[319513894,1710815475088,-500.0,0.00055068,120]
[319513895,1710815475098,-940.14,0.00055068,120]